[Event "Titled Tuesday Blitz May 10 Late 2022"]
[White "Oganian, Miran"]
[Black "Estrada Nieto, Julian"]
[WhiteFideId "4122488"]
[BlackFideId "5101018"]
[WhiteElo "2357"]
[BlackElo "2252"]
[Result "1/2-1/2"]
[Round "01"]
[TimeControl "180+1"]
[Date "2022.05.11"]
[WhiteClock "0:00:03"]
[BlackClock "0:00:24"]

1. e4 {[%clk 0:02:58]}  e5 {[%clk 0:02:58]} 2. Nf3 {[%clk 0:02:58]}  Nc6 {[%clk 0:02:58]} 3. Nc3 {[%clk 0:02:53]}  Nf6 {[%clk 0:02:57]} 4. d4 {[%clk 0:02:47]}  exd4 {[%clk 0:02:55]} 5. Nxd4 {[%clk 0:02:46]}  Bb4 {[%clk 0:02:56]} 6. Nxc6 {[%clk 0:02:41]}  bxc6 {[%clk 0:02:56]} 7. Bd3 {[%clk 0:02:42]}  d5 {[%clk 0:02:56]} 8. exd5 {[%clk 0:02:41]}  O-O {[%clk 0:02:56]} 9. O-O {[%clk 0:02:41]}  cxd5 {[%clk 0:02:56]} 10. h3 {[%clk 0:02:41]}  c6 {[%clk 0:02:57]} 11. Qf3 {[%clk 0:02:41]}  Bd6 {[%clk 0:02:51]} 12. Bf4 {[%clk 0:02:40]}  Rb8 {[%clk 0:02:50]} 13. b3 {[%clk 0:02:40]}  Be6 {[%clk 0:02:46]} 14. Rfe1 {[%clk 0:02:39]}  Re8 {[%clk 0:02:45]} 15. Ne2 {[%clk 0:02:39]}  Qc7 {[%clk 0:02:42]} 16. Bxd6 {[%clk 0:02:35]}  Qxd6 {[%clk 0:02:42]} 17. Rad1 {[%clk 0:02:33]}  h6 {[%clk 0:02:34]} 18. Nd4 {[%clk 0:02:32]}  Bd7 {[%clk 0:02:33]} 19. Bf5 {[%clk 0:02:27]}  Rxe1+ {[%clk 0:02:09]} 20. Rxe1 {[%clk 0:02:20]}  Re8 {[%clk 0:02:08]} 21. Rxe8+ {[%clk 0:02:16]}  Bxe8 {[%clk 0:02:08]} 22. Qe3 {[%clk 0:02:12]}  Kf8 {[%clk 0:02:08]} 23. Nf3 {[%clk 0:02:11]}  c5 {[%clk 0:02:05]} 24. c3 {[%clk 0:02:07]}  Bc6 {[%clk 0:02:01]} 25. Bc2 {[%clk 0:01:57]}  Nd7 {[%clk 0:01:55]} 26. Bf5 {[%clk 0:01:53]}  Nf6 {[%clk 0:01:54]} 27. Qe2 {[%clk 0:01:48]}  g6 {[%clk 0:01:51]} 28. Bc2 {[%clk 0:01:47]}  d4 {[%clk 0:01:49]} 29. cxd4 {[%clk 0:01:44]}  Bxf3 {[%clk 0:01:49]} 30. Qxf3 {[%clk 0:01:41]}  cxd4 {[%clk 0:01:44]} 31. Bd3 {[%clk 0:01:40]}  Kg7 {[%clk 0:01:44]} 32. Bc4 {[%clk 0:01:39]}  Qd7 {[%clk 0:01:36]} 33. b4 {[%clk 0:01:37]}  Ne8 {[%clk 0:01:33]} 34. b5 {[%clk 0:01:30]}  h5 {[%clk 0:01:24]} 35. a4 {[%clk 0:01:30]}  Nf6 {[%clk 0:01:24]} 36. a5 {[%clk 0:01:29]}  Qc7 {[%clk 0:01:20]} 37. Qd3 {[%clk 0:01:01]}  Qxa5 {[%clk 0:01:19]} 38. Qxd4 {[%clk 0:01:00]}  Qb4 {[%clk 0:01:17]} 39. Qd3 {[%clk 0:00:53]}  Qc5 {[%clk 0:01:12]} 40. Qb3 {[%clk 0:00:49]}  Ne4 {[%clk 0:01:06]} 41. Qb2+ {[%clk 0:00:48]}  Kg8 {[%clk 0:01:01]} 42. Qc2 {[%clk 0:00:45]}  Qd4 {[%clk 0:00:55]} 43. Qa2 {[%clk 0:00:43]}  Nxf2 {[%clk 0:00:49]} 44. Bxf7+ {[%clk 0:00:38]}  Kg7 {[%clk 0:00:49]} 45. Qxf2 {[%clk 0:00:28]}  Qxf2+ {[%clk 0:00:49]} 46. Kxf2 {[%clk 0:00:29]}  Kxf7 {[%clk 0:00:49]} 47. Ke3 {[%clk 0:00:27]}  Ke6 {[%clk 0:00:49]} 48. Ke4 {[%clk 0:00:28]}  Kd6 {[%clk 0:00:48]} 49. Kd4 {[%clk 0:00:24]}  g5 {[%clk 0:00:47]} 50. g3 {[%clk 0:00:11]}  h4 {[%clk 0:00:37]} 51. g4 {[%clk 0:00:11]}  Ke6 {[%clk 0:00:33]} 52. Kc5 {[%clk 0:00:10]}  Ke5 {[%clk 0:00:33]} 53. Kc6 {[%clk 0:00:07]}  Kd4 {[%clk 0:00:29]} 54. Kb7 {[%clk 0:00:03]}  Kc5 {[%clk 0:00:28]} 55. Kxa7 {[%clk 0:00:04]}  Kxb5 {[%clk 0:00:28]} 56. Kb7 {[%clk 0:00:05]}  Kc5 {[%clk 0:00:28]} 57. Kc7 {[%clk 0:00:05]}  Kd4 {[%clk 0:00:29]} 58. Kd6 {[%clk 0:00:06]}  Ke4 {[%clk 0:00:30]} 59. Ke6 {[%clk 0:00:06]}  Kf4 {[%clk 0:00:31]} 60. Kf6 {[%clk 0:00:06]}  Kg3 {[%clk 0:00:31]} 61. Kxg5 {[%clk 0:00:07]}  Kxh3 {[%clk 0:00:31]} 62. Kf4 {[%clk 0:00:07]}  Kg2 {[%clk 0:00:30]} 63. g5 {[%clk 0:00:07]}  h3 {[%clk 0:00:31]} 64. g6 {[%clk 0:00:07]}  h2 {[%clk 0:00:32]} 65. g7 {[%clk 0:00:08]}  h1=Q {[%clk 0:00:31]} 66. g8=Q+ {[%clk 0:00:09]}  Kf1 {[%clk 0:00:29]} 67. Qc4+ {[%clk 0:00:08]}  Kg1 {[%clk 0:00:28]} 68. Qd4+ {[%clk 0:00:08]}  Kh2 {[%clk 0:00:27]} 69. Qh8+ {[%clk 0:00:05]}  Kg1 {[%clk 0:00:26]} 70. Qd4+ {[%clk 0:00:03]}  Kh2 {[%clk 0:00:26]} 71. Qf2+ {[%clk 0:00:03]}  Qg2 {[%clk 0:00:25]} 72. Qxg2+ {[%clk 0:00:03]}  Kxg2 {[%clk 0:00:24]} 1/2-1/2


[Site "https://www.chess.com"]

[Event "Titled Tuesday Blitz May 10 Late 2022"]
[White "Ohanyan, Emin"]
[Black "Purtseladze, Maka"]
[WhiteFideId "13312022"]
[BlackFideId "13602659"]
[WhiteElo "1927"]
[BlackElo "2224"]
[Result "1-0"]
[Round "01"]
[TimeControl "180+1"]
[Date "2022.05.11"]
[WhiteClock "0:00:14"]
[BlackClock "0:00:08"]

1. e4 {[%clk 0:03:00]}  c6 {[%clk 0:02:56]} 2. d4 {[%clk 0:02:55]}  d5 {[%clk 0:02:57]} 3. Nc3 {[%clk 0:02:56]}  dxe4 {[%clk 0:02:55]} 4. Nxe4 {[%clk 0:02:57]}  Nf6 {[%clk 0:02:54]} 5. Nxf6+ {[%clk 0:02:57]}  exf6 {[%clk 0:02:55]} 6. Bd3 {[%clk 0:02:58]}  Bd6 {[%clk 0:02:54]} 7. Qh5 {[%clk 0:02:57]}  Be6 {[%clk 0:02:44]} 8. Ne2 {[%clk 0:02:57]}  Nd7 {[%clk 0:02:44]} 9. Nf4 {[%clk 0:02:57]}  Qe7 {[%clk 0:02:42]} 10. O-O {[%clk 0:02:57]}  O-O-O {[%clk 0:02:25]} 11. Re1 {[%clk 0:02:55]}  Nf8 {[%clk 0:01:50]} 12. Nxe6 {[%clk 0:02:18]}  fxe6 {[%clk 0:01:41]} 13. Be3 {[%clk 0:01:10]}  Kb8 {[%clk 0:01:29]} 14. c4 {[%clk 0:01:05]}  Qc7 {[%clk 0:01:25]} 15. g3 {[%clk 0:01:03]}  Bb4 {[%clk 0:01:02]} 16. Red1 {[%clk 0:01:01]}  Qa5 {[%clk 0:01:00]} 17. Qe2 {[%clk 0:00:59]}  Qc7 {[%clk 0:00:43]} 18. c5 {[%clk 0:00:53]}  Qf7 {[%clk 0:00:41]} 19. a3 {[%clk 0:00:43]}  Ba5 {[%clk 0:00:41]} 20. b4 {[%clk 0:00:44]}  Bc7 {[%clk 0:00:42]} 21. b5 {[%clk 0:00:45]}  cxb5 {[%clk 0:00:35]} 22. Be4 {[%clk 0:00:45]}  f5 {[%clk 0:00:31]} 23. Bg2 {[%clk 0:00:41]}  Qd7 {[%clk 0:00:28]} 24. a4 {[%clk 0:00:41]}  b4 {[%clk 0:00:27]} 25. a5 {[%clk 0:00:40]}  f4 {[%clk 0:00:25]} 26. a6 {[%clk 0:00:30]}  b6 {[%clk 0:00:08]} 27. cxb6 {[%clk 0:00:18]}  Bxb6 {[%clk 0:00:09]} 28. Bxf4+ {[%clk 0:00:19]}  Bc7 {[%clk 0:00:08]} 29. Rab1 {[%clk 0:00:14]} 1-0


[Site "https://www.chess.com"]

[Event "Titled Tuesday Blitz May 10 Late 2022"]
[White "Peralta, Eduardo"]
[Black "Joubert, Dantelle"]
[WhiteFideId "3700062"]
[BlackFideId "14310813"]
[WhiteElo "2125"]
[BlackElo "1507"]
[Result "1-0"]
[Round "01"]
[TimeControl "180+1"]
[Date "2022.05.11"]
[WhiteClock "0:02:16"]
[BlackClock "0:00:55"]

1. Nf3 {[%clk 0:03:00]}  d5 {[%clk 0:02:55]} 2. g3 {[%clk 0:03:01]}  e6 {[%clk 0:02:52]} 3. Bg2 {[%clk 0:03:01]}  Nf6 {[%clk 0:02:52]} 4. O-O {[%clk 0:03:02]}  Be7 {[%clk 0:02:53]} 5. d4 {[%clk 0:03:02]}  O-O {[%clk 0:02:52]} 6. c4 {[%clk 0:03:03]}  dxc4 {[%clk 0:02:46]} 7. Qc2 {[%clk 0:03:02]}  c5 {[%clk 0:02:46]} 8. dxc5 {[%clk 0:02:59]}  Bxc5 {[%clk 0:02:45]} 9. Qxc4 {[%clk 0:03:00]}  Qe7 {[%clk 0:02:44]} 10. Ne5 {[%clk 0:02:51]}  Nbd7 {[%clk 0:02:35]} 11. Bf4 {[%clk 0:02:50]}  Nxe5 {[%clk 0:02:34]} 12. Bxe5 {[%clk 0:02:50]}  Bd7 {[%clk 0:02:31]} 13. Bxb7 {[%clk 0:02:43]}  Rac8 {[%clk 0:02:10]} 14. Bxc8 {[%clk 0:02:41]}  Rxc8 {[%clk 0:02:11]} 15. Qh4 {[%clk 0:02:35]}  Bc6 {[%clk 0:01:50]} 16. Nd2 {[%clk 0:02:28]}  Ba8 {[%clk 0:01:49]} 17. Nf3 {[%clk 0:02:28]}  Bb6 {[%clk 0:01:41]} 18. Rfc1 {[%clk 0:02:27]}  Rd8 {[%clk 0:01:32]} 19. Rd1 {[%clk 0:02:25]}  Rxd1+ {[%clk 0:01:29]} 20. Rxd1 {[%clk 0:02:24]}  Qc5 {[%clk 0:01:18]} 21. Bd4 {[%clk 0:02:22]}  Qe7 {[%clk 0:01:16]} 22. Bxb6 {[%clk 0:02:22]}  axb6 {[%clk 0:01:16]} 23. Qd4 {[%clk 0:02:21]}  Bd5 {[%clk 0:01:08]} 24. Ne5 {[%clk 0:02:18]}  h5 {[%clk 0:01:02]} 25. f3 {[%clk 0:02:17]}  Bxa2 {[%clk 0:00:54]} 26. Qd8+ {[%clk 0:02:16]}  Qxd8 {[%clk 0:00:54]} 27. Rxd8+ {[%clk 0:02:16]}  Kh7 {[%clk 0:00:55]} 28. Nxf7 {[%clk 0:02:16]} 1-0


[Site "https://www.chess.com"]

[Event "Titled Tuesday Blitz May 10 Late 2022"]
[White "Petrovic, Aleksa"]
[Black "Hess, Robert"]
[WhiteFideId "967629"]
[BlackFideId "2022036"]
[WhiteElo "2144"]
[BlackElo "2557"]
[Result "0-1"]
[Round "01"]
[TimeControl "180+1"]
[Date "2022.05.10"]
[WhiteClock "0:00:05"]
[BlackClock "0:00:06"]

1. d4 {[%clk 0:02:59]}  g6 {[%clk 0:03:00]} 2. c4 {[%clk 0:02:58]}  Bg7 {[%clk 0:03:01]} 3. e4 {[%clk 0:02:58]}  b6 {[%clk 0:03:00]} 4. Nc3 {[%clk 0:02:58]}  Bb7 {[%clk 0:03:00]} 5. Be3 {[%clk 0:02:57]}  d6 {[%clk 0:03:00]} 6. f3 {[%clk 0:02:53]}  Nd7 {[%clk 0:03:01]} 7. Qd2 {[%clk 0:02:48]}  e6 {[%clk 0:03:01]} 8. Nh3 {[%clk 0:02:39]}  Ngf6 {[%clk 0:02:52]} 9. Nf2 {[%clk 0:02:33]}  h6 {[%clk 0:02:51]} 10. Bd3 {[%clk 0:02:27]}  a6 {[%clk 0:02:48]} 11. O-O {[%clk 0:02:25]}  Qe7 {[%clk 0:02:41]} 12. b4 {[%clk 0:02:21]}  e5 {[%clk 0:02:33]} 13. d5 {[%clk 0:02:20]}  Nh5 {[%clk 0:02:29]} 14. Na4 {[%clk 0:02:13]}  Bc8 {[%clk 0:02:06]} 15. c5 {[%clk 0:02:10]}  dxc5 {[%clk 0:02:04]} 16. bxc5 {[%clk 0:02:09]}  b5 {[%clk 0:02:05]} 17. c6 {[%clk 0:01:54]}  bxa4 {[%clk 0:02:04]} 18. cxd7+ {[%clk 0:01:54]}  Bxd7 {[%clk 0:02:05]} 19. Qa5 {[%clk 0:01:48]}  Nf4 {[%clk 0:02:01]} 20. Bc2 {[%clk 0:01:23]}  Qa3 {[%clk 0:01:33]} 21. Bc5 {[%clk 0:01:05]}  Qc3 {[%clk 0:01:21]} 22. Qxc3 {[%clk 0:00:44]}  Ne2+ {[%clk 0:01:21]} 23. Kh1 {[%clk 0:00:45]}  Nxc3 {[%clk 0:01:21]} 24. Rfe1 {[%clk 0:00:37]}  Bb5 {[%clk 0:00:42]} 25. Re3 {[%clk 0:00:22]}  Ne2 {[%clk 0:00:42]} 26. Bd3 {[%clk 0:00:21]}  Nd4 {[%clk 0:00:35]} 27. Bxd4 {[%clk 0:00:16]}  exd4 {[%clk 0:00:35]} 28. Re2 {[%clk 0:00:16]}  Kd7 {[%clk 0:00:15]} 29. e5 {[%clk 0:00:08]}  Rab8 {[%clk 0:00:12]} 30. f4 {[%clk 0:00:08]}  Bxd3 {[%clk 0:00:11]} 31. Nxd3 {[%clk 0:00:08]}  Rb5 {[%clk 0:00:11]} 32. Rc1 {[%clk 0:00:07]}  Rxd5 {[%clk 0:00:11]} 33. Nc5+ {[%clk 0:00:07]}  Kc8 {[%clk 0:00:09]} 34. Nxa6 {[%clk 0:00:07]}  d3 {[%clk 0:00:07]} 35. Rxc7+ {[%clk 0:00:05]}  Kd8 {[%clk 0:00:07]} 36. Rb2 {[%clk 0:00:06]}  Ke8 {[%clk 0:00:05]} 37. Rb8+ {[%clk 0:00:06]}  Rd8 {[%clk 0:00:06]} 38. Rbb7 {[%clk 0:00:05]}  d2 {[%clk 0:00:05]} 39. Re7+ {[%clk 0:00:04]}  Kf8 {[%clk 0:00:05]} 40. Rxf7+ {[%clk 0:00:05]}  Kg8 {[%clk 0:00:06]} 41. Rxg7+ {[%clk 0:00:05]}  Kf8 {[%clk 0:00:07]} 42. Rbf7+ {[%clk 0:00:05]}  Ke8 {[%clk 0:00:07]} 43. Re7+ {[%clk 0:00:05]}  Kf8 {[%clk 0:00:06]} 44. Rd7 {[%clk 0:00:05]}  d1=Q+ {[%clk 0:00:06]} 0-1


[Site "https://www.chess.com"]

[Event "Titled Tuesday Blitz May 10 Late 2022"]
[White "Plotnikov, Pavel"]
[Black "Zhigalko, Sergei"]
[WhiteFideId "4170342"]
[BlackFideId "13502956"]
[WhiteElo "2298"]
[BlackElo "2662"]
[Result "1/2-1/2"]
[Round "01"]
[TimeControl "180+1"]
[Date "2022.05.10"]
[WhiteClock "0:00:06"]
[BlackClock "0:00:03"]

1. e4 {[%clk 0:02:59]}  c5 {[%clk 0:02:59]} 2. Nf3 {[%clk 0:02:59]}  Nc6 {[%clk 0:02:59]} 3. Bb5 {[%clk 0:02:59]}  Nf6 {[%clk 0:02:57]} 4. Bxc6 {[%clk 0:02:57]}  dxc6 {[%clk 0:02:57]} 5. d3 {[%clk 0:02:58]}  Bg4 {[%clk 0:02:57]} 6. h3 {[%clk 0:02:57]}  Bh5 {[%clk 0:02:57]} 7. Be3 {[%clk 0:02:55]}  Nd7 {[%clk 0:02:58]} 8. Nbd2 {[%clk 0:02:54]}  e6 {[%clk 0:02:57]} 9. Qe2 {[%clk 0:02:53]}  Qc7 {[%clk 0:02:56]} 10. O-O-O {[%clk 0:02:53]}  Be7 {[%clk 0:02:52]} 11. Kb1 {[%clk 0:02:43]}  a5 {[%clk 0:02:51]} 12. g4 {[%clk 0:02:19]}  Bg6 {[%clk 0:02:50]} 13. Ne1 {[%clk 0:02:08]}  f6 {[%clk 0:02:34]} 14. f4 {[%clk 0:02:07]}  Bf7 {[%clk 0:02:34]} 15. Nef3 {[%clk 0:02:04]}  a4 {[%clk 0:02:26]} 16. h4 {[%clk 0:01:52]}  e5 {[%clk 0:02:22]} 17. fxe5 {[%clk 0:01:44]}  Nxe5 {[%clk 0:02:12]} 18. Nxe5 {[%clk 0:01:20]}  Qxe5 {[%clk 0:02:10]} 19. Nf3 {[%clk 0:01:19]}  Qe6 {[%clk 0:02:11]} 20. a3 {[%clk 0:01:18]}  Qa2+ {[%clk 0:01:54]} 21. Kc1 {[%clk 0:01:18]}  c4 {[%clk 0:01:55]} 22. Bd4 {[%clk 0:01:13]}  O-O-O {[%clk 0:01:50]} 23. Bc3 {[%clk 0:01:08]}  cxd3 {[%clk 0:01:43]} 24. cxd3 {[%clk 0:01:02]}  Bb3 {[%clk 0:01:39]} 25. Nd2 {[%clk 0:00:56]}  Bxa3 {[%clk 0:00:49]} 26. Nxb3 {[%clk 0:00:52]}  axb3 {[%clk 0:00:35]} 27. Qe3 {[%clk 0:00:47]}  Bd6 {[%clk 0:00:23]} 28. d4 {[%clk 0:00:44]}  Rhe8 {[%clk 0:00:20]} 29. e5 {[%clk 0:00:42]}  Bxe5 {[%clk 0:00:13]} 30. Qf2 {[%clk 0:00:27]}  g5 {[%clk 0:00:08]} 31. hxg5 {[%clk 0:00:26]}  fxg5 {[%clk 0:00:08]} 32. Qf5+ {[%clk 0:00:23]}  Kb8 {[%clk 0:00:08]} 33. dxe5 {[%clk 0:00:23]}  Qa1+ {[%clk 0:00:08]} 34. Qb1 {[%clk 0:00:24]}  Qa7 {[%clk 0:00:09]} 35. Rxd8+ {[%clk 0:00:21]}  Rxd8 {[%clk 0:00:10]} 36. Qe4 {[%clk 0:00:17]}  Qa1+ {[%clk 0:00:10]} 37. Qb1 {[%clk 0:00:17]}  Qa7 {[%clk 0:00:10]} 38. Qe4 {[%clk 0:00:18]}  Qa1+ {[%clk 0:00:06]} 39. Qb1 {[%clk 0:00:17]}  Qa6 {[%clk 0:00:05]} 40. Qe4 {[%clk 0:00:06]}  Qa1+ {[%clk 0:00:03]} 1/2-1/2


[Site "https://www.chess.com"]

[Event "Titled Tuesday Blitz May 10 Late 2022"]
[White "Prohorov, Olexandr"]
[Black "Ibarra Jerez, Jose Carlos"]
[WhiteFideId "14105578"]
[BlackFideId "2226332"]
[WhiteElo "1993"]
[BlackElo "2626"]
[Result "0-1"]
[Round "01"]
[TimeControl "180+1"]
[Date "2022.05.10"]
[WhiteClock "0:01:02"]
[BlackClock "0:01:13"]

1. Nf3 {[%clk 0:02:55]}  Nf6 {[%clk 0:02:59]} 2. c4 {[%clk 0:02:54]}  d6 {[%clk 0:02:58]} 3. Nc3 {[%clk 0:02:54]}  g6 {[%clk 0:02:56]} 4. d4 {[%clk 0:02:51]}  Bf5 {[%clk 0:02:55]} 5. Nh4 {[%clk 0:02:50]}  Bd7 {[%clk 0:02:55]} 6. e4 {[%clk 0:02:49]}  e5 {[%clk 0:02:55]} 7. Nf3 {[%clk 0:02:48]}  exd4 {[%clk 0:02:54]} 8. Nxd4 {[%clk 0:02:48]}  Bg7 {[%clk 0:02:54]} 9. Be2 {[%clk 0:02:48]}  O-O {[%clk 0:02:55]} 10. O-O {[%clk 0:02:48]}  Re8 {[%clk 0:02:55]} 11. f3 {[%clk 0:02:48]}  Nc6 {[%clk 0:02:54]} 12. Be3 {[%clk 0:02:47]}  Nh5 {[%clk 0:02:54]} 13. Nc2 {[%clk 0:02:36]}  Be5 {[%clk 0:02:38]} 14. Qd2 {[%clk 0:02:24]}  Qh4 {[%clk 0:02:29]} 15. f4 {[%clk 0:02:00]}  Bxc3 {[%clk 0:02:27]} 16. bxc3 {[%clk 0:01:56]}  Rxe4 {[%clk 0:02:21]} 17. Bd3 {[%clk 0:01:54]}  Ree8 {[%clk 0:02:17]} 18. g3 {[%clk 0:01:51]}  Nxg3 {[%clk 0:02:01]} 19. hxg3 {[%clk 0:01:51]}  Qxg3+ {[%clk 0:02:02]} 20. Kh1 {[%clk 0:01:50]}  Qh3+ {[%clk 0:02:00]} 21. Kg1 {[%clk 0:01:50]}  Qg3+ {[%clk 0:01:59]} 22. Kh1 {[%clk 0:01:50]}  Bg4 {[%clk 0:01:51]} 23. Qf2 {[%clk 0:01:37]}  Qh3+ {[%clk 0:01:43]} 24. Kg1 {[%clk 0:01:36]}  Bf5 {[%clk 0:01:39]} 25. Bxf5 {[%clk 0:01:30]}  Qxf5 {[%clk 0:01:39]} 26. Rae1 {[%clk 0:01:28]}  Re4 {[%clk 0:01:35]} 27. Nd4 {[%clk 0:01:22]}  Nxd4 {[%clk 0:01:24]} 28. Bxd4 {[%clk 0:01:22]}  Rae8 {[%clk 0:01:23]} 29. Rxe4 {[%clk 0:01:16]}  Rxe4 {[%clk 0:01:23]} 30. c5 {[%clk 0:01:13]}  dxc5 {[%clk 0:01:17]} 31. Bxc5 {[%clk 0:01:13]}  b6 {[%clk 0:01:18]} 32. Be3 {[%clk 0:01:06]}  Qg4+ {[%clk 0:01:15]} 33. Kh1 {[%clk 0:01:07]}  Qh3+ {[%clk 0:01:14]} 34. Kg1 {[%clk 0:01:02]}  Rxe3 {[%clk 0:01:13]} 0-1


[Site "https://www.chess.com"]

[Event "Titled Tuesday Blitz May 10 Late 2022"]
[White "Qashashvili, Alexandre"]
[Black "Moon, Benjamin"]
[WhiteFideId "13600842"]
[BlackFideId "2064847"]
[WhiteElo "2316"]
[BlackElo "2651"]
[Result "1-0"]
[Round "01"]
[TimeControl "180+1"]
[Date "2022.05.11"]
[WhiteClock "0:01:41"]
[BlackClock "0:00:55"]

1. e4 {[%clk 0:02:13]}  c5 {[%clk 0:02:59]} 2. Nc3 {[%clk 0:02:13]}  g6 {[%clk 0:03:00]} 3. Nf3 {[%clk 0:02:13]}  Nc6 {[%clk 0:03:00]} 4. d3 {[%clk 0:02:13]}  Bg7 {[%clk 0:03:00]} 5. Be3 {[%clk 0:02:14]}  d6 {[%clk 0:03:00]} 6. Qd2 {[%clk 0:02:14]}  e5 {[%clk 0:02:57]} 7. Be2 {[%clk 0:02:13]}  Nge7 {[%clk 0:02:51]} 8. Bh6 {[%clk 0:02:12]}  O-O {[%clk 0:02:52]} 9. h4 {[%clk 0:02:12]}  f5 {[%clk 0:02:50]} 10. h5 {[%clk 0:02:12]}  f4 {[%clk 0:02:49]} 11. Bxg7 {[%clk 0:02:12]}  Kxg7 {[%clk 0:02:50]} 12. hxg6 {[%clk 0:02:12]}  Nxg6 {[%clk 0:02:35]} 13. g3 {[%clk 0:02:12]}  Bg4 {[%clk 0:02:26]} 14. O-O-O {[%clk 0:02:10]}  h5 {[%clk 0:01:55]} 15. Rdg1 {[%clk 0:02:05]}  fxg3 {[%clk 0:01:34]} 16. Rxg3 {[%clk 0:02:04]}  Qf6 {[%clk 0:01:12]} 17. Nd5 {[%clk 0:01:59]}  Qf7 {[%clk 0:01:13]} 18. Rxg4 {[%clk 0:01:49]}  hxg4 {[%clk 0:00:54]} 19. Qh6+ {[%clk 0:01:47]}  Kg8 {[%clk 0:00:55]} 20. Nf6+ {[%clk 0:01:41]}  Qxf6 {[%clk 0:00:55]} 21. Qh7# {[%clk 0:01:41]} 1-0


[Site "https://www.chess.com"]

[Event "Titled Tuesday Blitz May 10 Late 2022"]
[White "Romanchuk, Viktor"]
[Black "Antonova, Nadezhda"]
[WhiteFideId "14109271"]
[BlackFideId "14700182"]
[WhiteElo "2242"]
[BlackElo "1743"]
[Result "0-1"]
[Round "01"]
[TimeControl "180+1"]
[Date "2022.05.11"]
[WhiteClock "0:00:02"]
[BlackClock "0:00:04"]

1. d4 {[%clk 0:03:00]}  Nf6 {[%clk 0:02:59]} 2. c4 {[%clk 0:02:59]}  g6 {[%clk 0:02:59]} 3. Nf3 {[%clk 0:02:57]}  Bg7 {[%clk 0:02:59]} 4. g3 {[%clk 0:02:57]}  d6 {[%clk 0:02:59]} 5. Bg2 {[%clk 0:02:58]}  O-O {[%clk 0:03:00]} 6. Nc3 {[%clk 0:02:58]}  Nc6 {[%clk 0:03:00]} 7. O-O {[%clk 0:02:58]}  a6 {[%clk 0:03:00]} 8. Qd3 {[%clk 0:02:57]}  Bd7 {[%clk 0:02:54]} 9. d5 {[%clk 0:02:56]}  Nb4 {[%clk 0:02:48]} 10. Qd1 {[%clk 0:02:52]}  a5 {[%clk 0:02:39]} 11. a3 {[%clk 0:02:48]}  Na6 {[%clk 0:02:39]} 12. e4 {[%clk 0:02:48]}  Nc5 {[%clk 0:02:31]} 13. e5 {[%clk 0:02:44]}  dxe5 {[%clk 0:02:30]} 14. Nxe5 {[%clk 0:02:42]}  Bf5 {[%clk 0:02:24]} 15. Re1 {[%clk 0:02:20]}  Rb8 {[%clk 0:02:08]} 16. h3 {[%clk 0:01:54]}  Nfd7 {[%clk 0:02:06]} 17. Bf4 {[%clk 0:01:29]}  f6 {[%clk 0:01:32]} 18. Nxd7 {[%clk 0:01:21]}  Bxd7 {[%clk 0:01:27]} 19. b4 {[%clk 0:01:13]}  axb4 {[%clk 0:01:24]} 20. axb4 {[%clk 0:01:14]}  Na6 {[%clk 0:01:25]} 21. Qb3 {[%clk 0:01:14]}  Kh8 {[%clk 0:01:20]} 22. Ra2 {[%clk 0:01:07]}  Re8 {[%clk 0:01:15]} 23. Rae2 {[%clk 0:01:06]}  Rc8 {[%clk 0:01:01]} 24. c5 {[%clk 0:00:48]}  c6 {[%clk 0:00:57]} 25. dxc6 {[%clk 0:00:28]}  Bxc6 {[%clk 0:00:56]} 26. Bxc6 {[%clk 0:00:25]}  Rxc6 {[%clk 0:00:42]} 27. Rd2 {[%clk 0:00:15]}  Qc8 {[%clk 0:00:38]} 28. h4 {[%clk 0:00:15]}  e5 {[%clk 0:00:38]} 29. Be3 {[%clk 0:00:15]}  Rce6 {[%clk 0:00:36]} 30. Nb5 {[%clk 0:00:14]}  Qc6 {[%clk 0:00:30]} 31. Nd6 {[%clk 0:00:11]}  Rf8 {[%clk 0:00:19]} 32. Red1 {[%clk 0:00:10]}  Re7 {[%clk 0:00:18]} 33. Qc4 {[%clk 0:00:08]}  Qf3 {[%clk 0:00:17]} 34. b5 {[%clk 0:00:08]}  Nc7 {[%clk 0:00:16]} 35. c6 {[%clk 0:00:07]}  bxc6 {[%clk 0:00:16]} 36. Qxc6 {[%clk 0:00:07]}  Qxc6 {[%clk 0:00:16]} 37. bxc6 {[%clk 0:00:07]}  Ne6 {[%clk 0:00:16]} 38. Nb5 {[%clk 0:00:07]}  f5 {[%clk 0:00:14]} 39. Rd7 {[%clk 0:00:07]}  Ree8 {[%clk 0:00:13]} 40. c7 {[%clk 0:00:06]}  Rc8 {[%clk 0:00:12]} 41. Bb6 {[%clk 0:00:05]}  Nd4 {[%clk 0:00:11]} 42. Nd6 {[%clk 0:00:04]}  Ra8 {[%clk 0:00:07]} 43. Bxd4 {[%clk 0:00:04]}  exd4 {[%clk 0:00:07]} 44. c8=Q {[%clk 0:00:04]}  Raxc8 {[%clk 0:00:07]} 45. Nxc8 {[%clk 0:00:04]}  Rxc8 {[%clk 0:00:08]} 46. Kg2 {[%clk 0:00:04]}  h5 {[%clk 0:00:09]} 47. R7xd4 {[%clk 0:00:03]}  Bxd4 {[%clk 0:00:08]} 48. Rxd4 {[%clk 0:00:04]}  Rf8 {[%clk 0:00:09]} 49. Rd7 {[%clk 0:00:04]}  Kg8 {[%clk 0:00:09]} 50. Kf3 {[%clk 0:00:04]}  Rf7 {[%clk 0:00:09]} 51. Rd6 {[%clk 0:00:04]}  Kg7 {[%clk 0:00:09]} 52. Kf4 {[%clk 0:00:05]}  Rf6 {[%clk 0:00:09]} 53. Rd8 {[%clk 0:00:05]}  Rc6 {[%clk 0:00:07]} 54. Kg5 {[%clk 0:00:05]}  Rb6 {[%clk 0:00:07]} 55. Rd7+ {[%clk 0:00:04]}  Kf8 {[%clk 0:00:06]} 56. Rh7 {[%clk 0:00:04]}  Kg8 {[%clk 0:00:06]} 57. Re7 {[%clk 0:00:04]}  Kf8 {[%clk 0:00:06]} 58. Rd7 {[%clk 0:00:03]}  Ke8 {[%clk 0:00:06]} 59. Rc7 {[%clk 0:00:03]}  Kd8 {[%clk 0:00:06]} 60. Rg7 {[%clk 0:00:02]}  f4 {[%clk 0:00:04]} 61. gxf4 {[%clk 0:00:02]}  Rb2 {[%clk 0:00:03]} 62. Rxg6 {[%clk 0:00:02]}  Rxf2 {[%clk 0:00:04]} 0-1


[Site "https://www.chess.com"]